[Event "Early-Titled-Tuesday-Blitz-February-06-2024"]
[Site "Chess.com"]
[Date "2024.02.06"]
[Round "9"]
[White "ChristopherYoo"]
[Black "Polish_fighter3000"]
[Result "1-0"]
[WhiteElo "2989"]
[BlackElo "3058"]
[TimeControl "180+1"]
[EndTime "9:45:18 PST"]
[Termination "ChristopherYoo won on time"]

1. d4 {[%clk 0:03:00.9]} 1... Nf6 {[%clk 0:02:59.3]} 2. Nf3 {[%clk 0:02:55.6]}
2... g6 {[%clk 0:02:58.9]} 3. c4 {[%clk 0:02:55.9]} 3... Bg7 {[%clk 0:02:58.8]}
4. g3 {[%clk 0:02:56.6]} 4... c6 {[%clk 0:02:57.8]} 5. Bg2 {[%clk 0:02:56.7]}
5... O-O {[%clk 0:02:57.8]} 6. O-O {[%clk 0:02:56.7]} 6... d5 {[%clk 0:02:57.5]}
7. cxd5 {[%clk 0:02:48.4]} 7... cxd5 {[%clk 0:02:58.4]} 8. Ne5 {[%clk
0:02:46.5]} 8... Ng4 {[%clk 0:02:54.9]} 9. Bf4 {[%clk 0:02:43.4]} 9... Nxe5
{[%clk 0:02:42.3]} 10. Bxe5 {[%clk 0:02:40]} 10... Bh6 {[%clk 0:02:39.9]} 11.
Nc3 {[%clk 0:02:22.7]} 11... e6 {[%clk 0:02:26.6]} 12. e4 {[%clk 0:02:17.9]}
12... Nc6 {[%clk 0:02:12.8]} 13. exd5 {[%clk 0:02:13.4]} 13... exd5 {[%clk
0:02:13.7]} 14. Nxd5 {[%clk 0:02:09.3]} 14... Nxe5 {[%clk 0:02:13.4]} 15. dxe5
{[%clk 0:02:10.2]} 15... Bg7 {[%clk 0:02:13.9]} 16. Qe2 {[%clk 0:02:05.9]} 16...
Re8 {[%clk 0:02:10.3]} 17. f4 {[%clk 0:01:59.9]} 17... Be6 {[%clk 0:02:08]} 18.
Rfd1 {[%clk 0:01:53.4]} 18... Qa5 {[%clk 0:02:05.5]} 19. b4 {[%clk 0:01:45.6]}
19... Qd8 {[%clk 0:01:44.7]} 20. Nf6+ {[%clk 0:01:44.1]} 20... Bxf6 {[%clk
0:01:45.2]} 21. Rxd8 {[%clk 0:01:43.4]} 21... Bxd8 {[%clk 0:01:46.1]} 22. Bxb7
{[%clk 0:01:40.6]} 22... Bb6+ {[%clk 0:01:34.9]} 23. Kg2 {[%clk 0:01:40.4]}
23... Rad8 {[%clk 0:01:31.9]} 24. Rd1 {[%clk 0:01:39.4]} 24... Rxd1 {[%clk
0:01:21.2]} 25. Qxd1 {[%clk 0:01:40.3]} 25... Rb8 {[%clk 0:01:07.8]} 26. Qf3
{[%clk 0:01:15.9]} 26... Bxa2 {[%clk 0:00:50.2]} 27. Bd5 {[%clk 0:01:15.4]}
27... Bxd5 {[%clk 0:00:50.5]} 28. Qxd5 {[%clk 0:01:16.3]} 28... Rd8 {[%clk
0:00:50.4]} 29. Qa2 {[%clk 0:01:03.1]} 29... Rd4 {[%clk 0:00:48.7]} 30. e6
{[%clk 0:00:58.1]} 30... Kf8 {[%clk 0:00:36.9]} 31. exf7 {[%clk 0:00:47.1]}
31... Rd7 {[%clk 0:00:36.5]} 32. Qe6 {[%clk 0:00:40.1]} 32... Rxf7 {[%clk
0:00:35.7]} 33. h4 {[%clk 0:00:40.7]} 33... Kg7 {[%clk 0:00:21.8]} 34. h5 {[%clk
0:00:39.2]} 34... gxh5 {[%clk 0:00:15.6]} 35. Qe5+ {[%clk 0:00:39.2]} 35... Kg8
{[%clk 0:00:15.3]} 36. Qxh5 {[%clk 0:00:39]} 36... Bd4 {[%clk 0:00:14.6]} 37.
Qd5 {[%clk 0:00:37.9]} 37... Bc3 {[%clk 0:00:10.3]} 38. b5 {[%clk 0:00:38.1]}
38... Bf6 {[%clk 0:00:07.5]} 39. g4 {[%clk 0:00:37.9]} 39... h6 {[%clk
0:00:06.9]} 40. g5 {[%clk 0:00:32.8]} 40... hxg5 {[%clk 0:00:07.8]} 41. f5
{[%clk 0:00:15.9]} 41... Kg7 {[%clk 0:00:07.9]} 42. Kf3 {[%clk 0:00:16.3]} 42...
Re7 {[%clk 0:00:07.6]} 43. Kg4 {[%clk 0:00:16.5]} 43... Re5 {[%clk 0:00:07.1]}
44. Qc6 {[%clk 0:00:14.7]} 44... Re7 {[%clk 0:00:06.7]} 45. Kh5 {[%clk
0:00:14.6]} 45... Re2 {[%clk 0:00:06.2]} 46. Qb7+ {[%clk 0:00:14.1]} 46... Re7
{[%clk 0:00:06.3]} 47. Qa8 {[%clk 0:00:14.6]} 47... Kf7 {[%clk 0:00:03]} 48. Kh6
{[%clk 0:00:09.3]} 48... Rd7 {[%clk 0:00:02.8]} 49. Qc8 {[%clk 0:00:03]} 49...
Re7 {[%clk 0:00:02]} 50. Qc4+ {[%clk 0:00:03.3]} 50... Kf8 {[%clk 0:00:02]} 51.
Kg6 {[%clk 0:00:03.4]} 51... Be5 {[%clk 0:00:01.8]} 52. f6 {[%clk 0:00:04]}
52... Bxf6 {[%clk 0:00:01.7]} 53. Kxf6 {[%clk 0:00:04]} 1-0

[Event "Early-Titled-Tuesday-Blitz-February-06-2024"]
[Site "Chess.com"]
[Date "2024.02.06"]
[Round "9"]
[White "ChEsper99"]
[Black "goodwilll"]
[Result "0-1"]
[WhiteElo "2226"]
[BlackElo "2502"]
[TimeControl "180+1"]
[EndTime "9:45:19 PST"]
[Termination "goodwilll won on time"]

1. e4 {[%clk 0:03:00.9]} 1... c6 {[%clk 0:02:59.4]} 2. Nc3 {[%clk 0:02:59.6]}
2... d5 {[%clk 0:03:00.3]} 3. Nf3 {[%clk 0:03:00]} 3... dxe4 {[%clk 0:03:00.2]}
4. Nxe4 {[%clk 0:03:00.9]} 4... Nf6 {[%clk 0:03:00.8]} 5. Qe2 {[%clk 0:02:58.2]}
5... Nxe4 {[%clk 0:02:59.9]} 6. Qxe4 {[%clk 0:02:59.1]} 6... Qd5 {[%clk
0:02:59.9]} 7. Qf4 {[%clk 0:02:57.1]} 7... Qf5 {[%clk 0:02:59.3]} 8. d3 {[%clk
0:02:52.8]} 8... Qxf4 {[%clk 0:02:58.2]} 9. Bxf4 {[%clk 0:02:53.7]} 9... f6
{[%clk 0:02:51.1]} 10. d4 {[%clk 0:02:50.8]} 10... Bg4 {[%clk 0:02:50.4]} 11.
Be2 {[%clk 0:02:50.2]} 11... Nd7 {[%clk 0:02:45.3]} 12. h3 {[%clk 0:02:50]}
12... Bf5 {[%clk 0:02:38.5]} 13. O-O-O {[%clk 0:02:49.7]} 13... g5 {[%clk
0:02:34.4]} 14. Be3 {[%clk 0:02:39.2]} 14... Nb6 {[%clk 0:02:32.8]} 15. c4
{[%clk 0:02:28]} 15... h5 {[%clk 0:02:11.5]} 16. Nh2 {[%clk 0:01:51]} 16... Kf7
{[%clk 0:02:06.3]} 17. g4 {[%clk 0:01:50.3]} 17... Be4 {[%clk 0:02:02.6]} 18. f3
{[%clk 0:01:36.4]} 18... Bg6 {[%clk 0:02:00.3]} 19. f4 {[%clk 0:01:25]} 19...
gxf4 {[%clk 0:01:56.7]} 20. Bxf4 {[%clk 0:01:22.9]} 20... Bh6 {[%clk 0:01:56.2]}
21. Bxh6 {[%clk 0:01:14.8]} 21... Rxh6 {[%clk 0:01:57.1]} 22. g5 {[%clk
0:00:44.2]} 22... fxg5 {[%clk 0:01:54.7]} 23. Nf3 {[%clk 0:00:44.7]} 23... Bf5
{[%clk 0:01:22.6]} 24. Nxg5+ {[%clk 0:00:42.5]} 24... Kf6 {[%clk 0:01:22.4]} 25.
h4 {[%clk 0:00:41.7]} 25... e6 {[%clk 0:01:10.9]} 26. Rhf1 {[%clk 0:00:41.5]}
26... Rd8 {[%clk 0:01:06.9]} 27. b3 {[%clk 0:00:29.8]} 27... Rhh8 {[%clk
0:01:04.6]} 28. Kb2 {[%clk 0:00:30]} 28... Kg6 {[%clk 0:01:03.4]} 29. Kc3 {[%clk
0:00:27.9]} 29... Rhf8 {[%clk 0:01:02.3]} 30. Rg1 {[%clk 0:00:21.8]} 30... Kh6
{[%clk 0:01:00.9]} 31. Rdf1 {[%clk 0:00:22.1]} 31... Nd7 {[%clk 0:00:48.6]} 32.
Nf3 {[%clk 0:00:20.8]} 32... Bg4 {[%clk 0:00:43.8]} 33. Rg2 {[%clk 0:00:15.5]}
33... Rf4 {[%clk 0:00:38.3]} 34. Nh2 {[%clk 0:00:06.7]} 34... Rxf1 {[%clk
0:00:28.4]} 35. Nxf1 {[%clk 0:00:07.4]} 35... Nf6 {[%clk 0:00:24.6]} 36. Bxg4
{[%clk 0:00:06.8]} 36... hxg4 {[%clk 0:00:23.8]} 37. Re2 {[%clk 0:00:04]} 37...
Re8 {[%clk 0:00:18.4]} 38. Ng3 {[%clk 0:00:03.6]} 38... Kg6 {[%clk 0:00:14.9]}
39. Re5 {[%clk 0:00:02.4]} 39... Nd7 {[%clk 0:00:12.2]} 40. h5+ {[%clk 0:00:02]}
40... Kf6 {[%clk 0:00:11.8]} 41. Re4 {[%clk 0:00:02.1]} 41... Kg5 {[%clk
0:00:10.6]} 42. Kd3 {[%clk 0:00:01.8]} 42... Nf6 {[%clk 0:00:05.3]} 43. Re5+
{[%clk 0:00:01.2]} 43... Kf4 {[%clk 0:00:05.2]} 44. Ne4 {[%clk 0:00:01.4]} 44...
Nxe4 {[%clk 0:00:04.2]} 45. Rxe4+ {[%clk 0:00:02.3]} 45... Kf3 {[%clk
0:00:04.5]} 46. h6 {[%clk 0:00:02.9]} 46... g3 {[%clk 0:00:03.7]} 47. h7 {[%clk
0:00:02.7]} 47... Rh8 {[%clk 0:00:03.8]} 48. Rh4 {[%clk 0:00:02.6]} 48... g2
{[%clk 0:00:03.3]} 0-1

[Event "Early-Titled-Tuesday-Blitz-February-06-2024"]
[Site "Chess.com"]
[Date "2024.02.06"]
[Round "9"]
[White "Payyappat"]
[Black "Mops_2004"]
[Result "1/2-1/2"]
[WhiteElo "2509"]
[BlackElo "2679"]
[TimeControl "180+1"]
[EndTime "9:45:22 PST"]
[Termination "Game drawn by repetition"]

1. e4 {[%clk 0:03:00.9]} 1... c6 {[%clk 0:02:58.7]} 2. d4 {[%clk 0:03:00.3]}
2... d5 {[%clk 0:02:59.3]} 3. Nc3 {[%clk 0:03:00.9]} 3... dxe4 {[%clk
0:02:59.5]} 4. Nxe4 {[%clk 0:03:01.8]} 4... Nf6 {[%clk 0:03:00.1]} 5. Nxf6+
{[%clk 0:03:01.9]} 5... exf6 {[%clk 0:03:01]} 6. Bc4 {[%clk 0:03:01.9]} 6... Bd6
{[%clk 0:03:01.3]} 7. Qe2+ {[%clk 0:03:00.7]} 7... Qe7 {[%clk 0:03:01.6]} 8.
Qxe7+ {[%clk 0:03:00.6]} 8... Kxe7 {[%clk 0:03:02.5]} 9. Ne2 {[%clk 0:03:00.8]}
9... Bf5 {[%clk 0:02:57.9]} 10. c3 {[%clk 0:02:59]} 10... Nd7 {[%clk 0:02:54.1]}
11. Bf4 {[%clk 0:02:56.4]} 11... a5 {[%clk 0:02:52.6]} 12. O-O-O {[%clk
0:02:53.4]} 12... b5 {[%clk 0:02:48.2]} 13. Bb3 {[%clk 0:02:41.2]} 13... a4
{[%clk 0:02:43.3]} 14. Bc2 {[%clk 0:02:39.7]} 14... Bxc2 {[%clk 0:02:35.8]} 15.
Kxc2 {[%clk 0:02:40.6]} 15... Nb6 {[%clk 0:02:35.2]} 16. Rhe1 {[%clk 0:02:37.3]}
16... Bxf4 {[%clk 0:02:28.9]} 17. Nxf4+ {[%clk 0:02:35.8]} 17... Kd6 {[%clk
0:02:29.5]} 18. Nh5 {[%clk 0:02:31.6]} 18... Rhg8 {[%clk 0:02:27.3]} 19. Re2
{[%clk 0:02:31.4]} 19... Nd5 {[%clk 0:02:25.8]} 20. Rde1 {[%clk 0:02:30.7]}
20... g6 {[%clk 0:02:25.7]} 21. Ng3 {[%clk 0:02:27.7]} 21... f5 {[%clk 0:02:26]}
22. Re5 {[%clk 0:02:22.5]} 22... Ra7 {[%clk 0:02:22.3]} 23. h4 {[%clk
0:02:18.9]} 23... Nf4 {[%clk 0:02:21.1]} 24. h5 {[%clk 0:02:10.7]} 24... Nxg2
{[%clk 0:02:19.4]} 25. hxg6 {[%clk 0:02:05.5]} 25... hxg6 {[%clk 0:02:15]} 26.
Rg1 {[%clk 0:02:02.9]} 26... Nh4 {[%clk 0:02:07.2]} 27. Rh1 {[%clk 0:01:03.8]}
27... Nf3 {[%clk 0:02:03.6]} 28. Nxf5+ {[%clk 0:01:02.7]} 28... gxf5 {[%clk
0:01:57.7]} 29. Rxf5 {[%clk 0:01:03.6]} 29... Ng1 {[%clk 0:01:57.5]} 30. Rh6+
{[%clk 0:00:51.8]} 30... Kc7 {[%clk 0:01:45.9]} 31. Rxf7+ {[%clk 0:00:50.8]}
31... Kb6 {[%clk 0:01:45.7]} 32. Rxa7 {[%clk 0:00:47.4]} 32... Kxa7 {[%clk
0:01:45.7]} 33. Rxc6 {[%clk 0:00:47.7]} 33... Ne2 {[%clk 0:01:40.6]} 34. Kd3
{[%clk 0:00:39.1]} 34... Nf4+ {[%clk 0:01:32.7]} 35. Ke4 {[%clk 0:00:37.5]}
35... Nh3 {[%clk 0:01:33.1]} 36. f4 {[%clk 0:00:31.8]} 36... Re8+ {[%clk
0:01:30.7]} 37. Kd5 {[%clk 0:00:16.4]} 37... Nxf4+ {[%clk 0:01:30.5]} 38. Kc5
{[%clk 0:00:16.6]} 38... Rb8 {[%clk 0:01:29.8]} 39. Rc7+ {[%clk 0:00:15.8]}
39... Ka6 {[%clk 0:01:29.6]} 40. Rc6+ {[%clk 0:00:15.9]} 40... Ka5 {[%clk
0:01:29.9]} 41. b4+ {[%clk 0:00:15.8]} 41... axb3 {[%clk 0:01:29.3]} 42. axb3
{[%clk 0:00:16.7]} 42... Nd3+ {[%clk 0:01:25.8]} 43. Kd6 {[%clk 0:00:13.5]}
43... Rd8+ {[%clk 0:01:22.5]} 44. Kc7 {[%clk 0:00:13.8]} 44... Rd5 {[%clk
0:01:20]} 45. Kb7 {[%clk 0:00:13.9]} 45... Rd7+ {[%clk 0:01:16.9]} 46. Rc7
{[%clk 0:00:09.2]} 46... Rd8 {[%clk 0:01:14.2]} 47. Rc6 {[%clk 0:00:07.3]} 47...
Rd7+ {[%clk 0:01:07.8]} 48. Rc7 {[%clk 0:00:05.8]} 48... Rxc7+ {[%clk
0:00:27.2]} 49. Kxc7 {[%clk 0:00:06.7]} 49... Nc1 {[%clk 0:00:26.8]} 50. d5
{[%clk 0:00:02.5]} 50... Nxb3 {[%clk 0:00:26.6]} 51. d6 {[%clk 0:00:03.1]} 51...
Nc5 {[%clk 0:00:25]} 52. Kc6 {[%clk 0:00:03.1]} 52... Ne6 {[%clk 0:00:24]} 53.
d7 {[%clk 0:00:03.2]} 53... Ka4 {[%clk 0:00:20.5]} 54. Kd6 {[%clk 0:00:02.9]}
54... Nd8 {[%clk 0:00:20.8]} 55. Kc7 {[%clk 0:00:03.3]} 55... Nf7 {[%clk
0:00:21.3]} 56. Kb6 {[%clk 0:00:03.3]} 56... Nd8 {[%clk 0:00:17.1]} 57. Kc7
{[%clk 0:00:02.7]} 57... Ne6+ {[%clk 0:00:17.3]} 58. Kd6 {[%clk 0:00:02.8]}
58... Nd8 {[%clk 0:00:16.6]} 59. Kc7 {[%clk 0:00:03]} 1/2-1/2

[Event "Early-Titled-Tuesday-Blitz-February-06-2024"]
[Site "Chess.com"]
[Date "2024.02.06"]
[Round "9"]
[White "Arlo2024"]
[Black "ProChessWICTH"]
[Result "0-1"]
[WhiteElo "2311"]
[BlackElo "2522"]
[TimeControl "180+1"]
[EndTime "9:45:28 PST"]
[Termination "ProChessWICTH won on time"]

1. e4 {[%clk 0:02:56]} 1... c5 {[%clk 0:02:59.7]} 2. Nc3 {[%clk 0:02:55.6]} 2...
Nc6 {[%clk 0:02:56.8]} 3. g3 {[%clk 0:02:56.5]} 3... g6 {[%clk 0:02:56]} 4. Bg2
{[%clk 0:02:57.4]} 4... Bg7 {[%clk 0:02:56.7]} 5. d3 {[%clk 0:02:57.7]} 5... e6
{[%clk 0:02:53.7]} 6. Be3 {[%clk 0:02:57.3]} 6... d6 {[%clk 0:02:53.3]} 7. Qd2
{[%clk 0:02:57.9]} 7... Nge7 {[%clk 0:02:53.3]} 8. Bh6 {[%clk 0:02:57.2]} 8...
O-O {[%clk 0:02:53.2]} 9. Bxg7 {[%clk 0:02:57.1]} 9... Kxg7 {[%clk 0:02:54.1]}
10. Nge2 {[%clk 0:02:56.7]} 10... Rb8 {[%clk 0:02:53.3]} 11. O-O {[%clk
0:02:55.8]} 11... b5 {[%clk 0:02:52.8]} 12. a3 {[%clk 0:02:53.6]} 12... a5
{[%clk 0:02:47.8]} 13. Nd1 {[%clk 0:02:52.2]} 13... Bb7 {[%clk 0:02:46.2]} 14.
Ne3 {[%clk 0:02:51.7]} 14... Ra8 {[%clk 0:02:41.9]} 15. c3 {[%clk 0:02:50.7]}
15... b4 {[%clk 0:02:37.9]} 16. axb4 {[%clk 0:02:50.7]} 16... axb4 {[%clk
0:02:38.4]} 17. Ng4 {[%clk 0:02:48.5]} 17... Ng8 {[%clk 0:02:33.9]} 18. Ne3
{[%clk 0:02:48.3]} 18... Na5 {[%clk 0:02:01.8]} 19. Nc1 {[%clk 0:02:40.9]} 19...
Nc6 {[%clk 0:01:53]} 20. Ne2 {[%clk 0:02:40]} 20... Qc7 {[%clk 0:01:42.7]} 21.
Rxa8 {[%clk 0:02:32.6]} 21... Rxa8 {[%clk 0:01:42.1]} 22. f4 {[%clk 0:02:33.4]}
22... Qa5 {[%clk 0:00:55.6]} 23. f5 {[%clk 0:02:31.5]} 23... bxc3 {[%clk
0:00:54.6]} 24. bxc3 {[%clk 0:02:30.3]} 24... Qa2 {[%clk 0:00:52.5]} 25. Qxa2
{[%clk 0:02:01.4]} 25... Rxa2 {[%clk 0:00:53.4]} 26. Nf4 {[%clk 0:02:01.5]}
26... Bc8 {[%clk 0:00:43.7]} 27. Nc4 {[%clk 0:01:58.4]} 27... exf5 {[%clk
0:00:11.3]} 28. exf5 {[%clk 0:01:54.5]} 28... Ne5 {[%clk 0:00:11.9]} 29. Nxd6
{[%clk 0:01:43.8]} 29... Bxf5 {[%clk 0:00:12]} 30. Nxf5+ {[%clk 0:01:36.2]}
30... gxf5 {[%clk 0:00:12.9]} 31. d4 {[%clk 0:01:25.6]} 31... cxd4 {[%clk
0:00:12.4]} 32. cxd4 {[%clk 0:01:26.5]} 32... Ng4 {[%clk 0:00:10.8]} 33. Re1
{[%clk 0:01:02.9]} 33... Rd2 {[%clk 0:00:10.1]} 34. d5 {[%clk 0:00:53.2]} 34...
Kf8 {[%clk 0:00:10]} 35. h3 {[%clk 0:00:53.5]} 35... N4f6 {[%clk 0:00:10]} 36.
Re5 {[%clk 0:00:51.3]} 36... Ne7 {[%clk 0:00:09.4]} 37. Kf1 {[%clk 0:00:43.6]}
37... Nd7 {[%clk 0:00:06.5]} 38. Re3 {[%clk 0:00:35.1]} 38... Ng6 {[%clk
0:00:05.3]} 39. Nh5 {[%clk 0:00:19.2]} 39... Nge5 {[%clk 0:00:05.5]} 40. Ra3
{[%clk 0:00:16.3]} 40... Ke7 {[%clk 0:00:03.1]} 41. Ra7 {[%clk 0:00:15.4]} 41...
Nd3 {[%clk 0:00:02.7]} 42. Nf4 {[%clk 0:00:13.8]} 42... Nxf4 {[%clk 0:00:02.8]}
43. gxf4 {[%clk 0:00:13.6]} 43... Rd4 {[%clk 0:00:02.6]} 44. Ke2 {[%clk
0:00:08.5]} 44... Rxf4 {[%clk 0:00:02.7]} 45. Ke3 {[%clk 0:00:08.9]} 45... Rb4
{[%clk 0:00:02.2]} 46. Ra6 {[%clk 0:00:06]} 46... Rb6 {[%clk 0:00:01.9]} 47. Ra7
{[%clk 0:00:05.7]} 47... Rb4 {[%clk 0:00:01.7]} 48. Ra6 {[%clk 0:00:06]} 48...
Rb6 {[%clk 0:00:02.1]} 49. Ra7 {[%clk 0:00:06.3]} 49... Kd6 {[%clk 0:00:02.6]}
50. Ra8 {[%clk 0:00:05.6]} 50... Ke5 {[%clk 0:00:02.2]} 51. Re8+ {[%clk
0:00:05]} 51... Kf6 {[%clk 0:00:02.7]} 52. Rh8 {[%clk 0:00:05.4]} 52... Ne5
{[%clk 0:00:01.9]} 53. Rxh7 {[%clk 0:00:03.9]} 53... Rb3+ {[%clk 0:00:02.5]} 54.
Kd4 {[%clk 0:00:03]} 54... Ng6 {[%clk 0:00:02.4]} 0-1

[Event "Early-Titled-Tuesday-Blitz-February-06-2024"]
[Site "Chess.com"]
[Date "2024.02.06"]
[Round "9"]
[White "WiktoriaPOL"]
[Black "KhazhatulyAlikhan"]
[Result "1/2-1/2"]
[WhiteElo "2280"]
[BlackElo "2400"]
[TimeControl "180+1"]
[EndTime "9:45:31 PST"]
[Termination "Game drawn by repetition"]

1. c4 {[%clk 0:03:00.9]} 1... Nf6 {[%clk 0:02:56.7]} 2. Nc3 {[%clk 0:02:59.8]}
2... e6 {[%clk 0:02:57]} 3. e4 {[%clk 0:02:59.2]} 3... e5 {[%clk 0:02:57.7]} 4.
Nf3 {[%clk 0:02:58.6]} 4... Nc6 {[%clk 0:02:58]} 5. a3 {[%clk 0:02:48.5]} 5...
Bc5 {[%clk 0:02:53.8]} 6. Nxe5 {[%clk 0:02:47.9]} 6... Nxe5 {[%clk 0:02:36.9]}
7. d4 {[%clk 0:02:47.2]} 7... Bd6 {[%clk 0:02:37.8]} 8. c5 {[%clk 0:02:46.9]}
8... Bxc5 {[%clk 0:02:38.1]} 9. dxe5 {[%clk 0:02:43.9]} 9... Ng8 {[%clk
0:02:14.4]} 10. Qg4 {[%clk 0:02:36.1]} 10... g6 {[%clk 0:02:12.7]} 11. Bc4
{[%clk 0:02:09.2]} 11... d5 {[%clk 0:02:08.5]} 12. Qg3 {[%clk 0:01:48.3]} 12...
dxc4 {[%clk 0:02:05.1]} 13. Bg5 {[%clk 0:01:45.2]} 13... Qd3 {[%clk 0:02:02.8]}
14. Rd1 {[%clk 0:01:41.2]} 14... Qxd1+ {[%clk 0:01:38.7]} 15. Kxd1 {[%clk
0:01:36]} 15... Be6 {[%clk 0:01:31.7]} 16. Kc2 {[%clk 0:01:31.8]} 16... h6
{[%clk 0:01:30.2]} 17. Bf6 {[%clk 0:01:24.4]} 17... Nxf6 {[%clk 0:01:28.9]} 18.
exf6 {[%clk 0:01:25.3]} 18... O-O-O {[%clk 0:01:29.6]} 19. Nb5 {[%clk
0:01:18.8]} 19... Bb6 {[%clk 0:01:29]} 20. Rd1 {[%clk 0:01:08.4]} 20... Rxd1
{[%clk 0:01:27]} 21. Kxd1 {[%clk 0:01:09.3]} 21... Rd8+ {[%clk 0:01:27.3]} 22.
Kc2 {[%clk 0:01:09.6]} 22... a6 {[%clk 0:01:26.5]} 23. Nc3 {[%clk 0:01:08.2]}
23... h5 {[%clk 0:00:46.6]} 24. f4 {[%clk 0:00:43]} 24... Rd3 {[%clk 0:00:43.1]}
25. Qe1 {[%clk 0:00:38.4]} 25... Be3 {[%clk 0:00:36.2]} 26. Nd5 {[%clk
0:00:30.8]} 26... Bd4 {[%clk 0:00:16.6]} 27. Qb4 {[%clk 0:00:22.8]} 27... c5
{[%clk 0:00:06.6]} 28. Qb6 {[%clk 0:00:08.2]} 28... Bxd5 {[%clk 0:00:06.6]} 29.
exd5 {[%clk 0:00:08.1]} 29... Rb3 {[%clk 0:00:07.2]} 30. Qd6 {[%clk 0:00:05.1]}
30... Rxb2+ {[%clk 0:00:07.7]} 31. Kc1 {[%clk 0:00:05]} 31... Rxg2 {[%clk
0:00:05.2]} 32. Qf8+ {[%clk 0:00:04.8]} 32... Kc7 {[%clk 0:00:05.4]} 33. d6+
{[%clk 0:00:03.6]} 33... Kc6 {[%clk 0:00:03]} 34. Qc8+ {[%clk 0:00:02.2]} 34...
Kxd6 {[%clk 0:00:02.7]} 35. Qxb7 {[%clk 0:00:02.5]} 35... Rg1+ {[%clk
0:00:02.6]} 36. Kc2 {[%clk 0:00:02.9]} 36... Ke6 {[%clk 0:00:03.4]} 37. Qe7+
{[%clk 0:00:02.8]} 37... Kf5 {[%clk 0:00:03.6]} 38. Qxf7 {[%clk 0:00:02.4]}
38... Rg2+ {[%clk 0:00:03.5]} 39. Kd1 {[%clk 0:00:02.2]} 39... Rxh2 {[%clk
0:00:03.4]} 40. Qxc4 {[%clk 0:00:01.5]} 40... Kxf6 {[%clk 0:00:03.6]} 41. Qd5
{[%clk 0:00:01.5]} 41... Rf2 {[%clk 0:00:03.4]} 42. Qc6+ {[%clk 0:00:02.2]}
42... Kf5 {[%clk 0:00:03.7]} 43. Qxa6 {[%clk 0:00:02.5]} 43... Rxf4 {[%clk
0:00:04.3]} 44. Qd3+ {[%clk 0:00:02.7]} 44... Kg5 {[%clk 0:00:04.8]} 45. a4
{[%clk 0:00:02.9]} 45... h4 {[%clk 0:00:05.5]} 46. a5 {[%clk 0:00:02.5]} 46...
Rg4 {[%clk 0:00:05.7]} 47. a6 {[%clk 0:00:02.5]} 47... Rg1+ {[%clk 0:00:06]} 48.
Kc2 {[%clk 0:00:02.7]} 48... Rg2+ {[%clk 0:00:06]} 49. Kd1 {[%clk 0:00:03]}
49... Rg1+ {[%clk 0:00:06.3]} 50. Ke2 {[%clk 0:00:03.5]} 50... Rg2+ {[%clk
0:00:06.7]} 51. Ke1 {[%clk 0:00:03.5]} 51... Rg1+ {[%clk 0:00:07.1]} 52. Ke2
{[%clk 0:00:03.8]} 52... Rg2+ {[%clk 0:00:07.7]} 53. Kf1 {[%clk 0:00:03.9]}
53... Rg1+ {[%clk 0:00:07.8]} 54. Ke2 {[%clk 0:00:04.2]} 1/2-1/2

[Event "Early-Titled-Tuesday-Blitz-February-06-2024"]
[Site "Chess.com"]
[Date "2024.02.06"]
[Round "9"]
[White "Sam_ChessMood"]
[Black "AradNazari"]
[Result "1-0"]
[WhiteElo "2920"]
[BlackElo "2777"]
[TimeControl "180+1"]
[EndTime "9:45:33 PST"]
[Termination "Sam_ChessMood won by resignation"]

1. d4 {[%clk 0:02:52.6]} 1... Nf6 {[%clk 0:02:37.1]} 2. c4 {[%clk 0:02:52.6]}
2... g6 {[%clk 0:02:35.8]} 3. Nc3 {[%clk 0:02:52.8]} 3... d5 {[%clk 0:02:35.4]}
4. Bf4 {[%clk 0:02:53]} 4... Bg7 {[%clk 0:02:29.1]} 5. e3 {[%clk 0:02:53.3]}
5... O-O {[%clk 0:02:26.7]} 6. Rc1 {[%clk 0:02:53.3]} 6... c5 {[%clk 0:02:01.3]}
7. dxc5 {[%clk 0:02:54.2]} 7... Qa5 {[%clk 0:02:01]} 8. cxd5 {[%clk 0:02:51.1]}
8... Rd8 {[%clk 0:01:51.3]} 9. Bc4 {[%clk 0:02:43.1]} 9... Ne4 {[%clk
0:01:44.2]} 10. Ne2 {[%clk 0:02:42.1]} 10... Nxc5 {[%clk 0:01:29.5]} 11. O-O
{[%clk 0:02:29.4]} 11... Bf5 {[%clk 0:01:25.6]} 12. Nd4 {[%clk 0:02:19.7]} 12...
Bd7 {[%clk 0:01:01.6]} 13. a3 {[%clk 0:02:16.7]} 13... Nca6 {[%clk 0:00:45.6]}
14. Ba2 {[%clk 0:02:05.9]} 14... Qb6 {[%clk 0:00:44]} 15. b4 {[%clk 0:02:02.4]}
15... Be8 {[%clk 0:00:39.7]} 16. d6 {[%clk 0:01:36.5]} 16... e5 {[%clk 0:00:36]}
17. Nd5 {[%clk 0:01:04.7]} 17... Qxd6 {[%clk 0:00:35.5]} 18. Bg3 {[%clk
0:01:02.1]} 18... Qf8 {[%clk 0:00:22.3]} 19. Nf3 {[%clk 0:00:43.3]} 19... h6
{[%clk 0:00:16.8]} 20. Bxe5 {[%clk 0:00:35.5]} 20... Nd7 {[%clk 0:00:11.8]} 21.
Bd4 {[%clk 0:00:31.8]} 21... Nb6 {[%clk 0:00:10.7]} 22. Nxb6 {[%clk 0:00:28.9]}
22... axb6 {[%clk 0:00:10.6]} 23. Qe2 {[%clk 0:00:29.3]} 23... Bxd4 {[%clk
0:00:08.2]} 24. Nxd4 {[%clk 0:00:30.2]} 24... Nb8 {[%clk 0:00:08.7]} 25. Qg4
{[%clk 0:00:24.3]} 25... Qg7 {[%clk 0:00:08.2]} 26. Rc7 {[%clk 0:00:19.6]} 26...
Nd7 {[%clk 0:00:05.8]} 27. Rc3 {[%clk 0:00:14.1]} 27... Ne5 {[%clk 0:00:05.8]}
28. Qf4 {[%clk 0:00:13.6]} 28... Nc6 {[%clk 0:00:06.5]} 29. Rd1 {[%clk
0:00:11.6]} 29... Nxd4 {[%clk 0:00:05.8]} 30. exd4 {[%clk 0:00:11.9]} 30... Bc6
{[%clk 0:00:04.4]} 31. h4 {[%clk 0:00:06.8]} 31... Bd5 {[%clk 0:00:04.8]} 32.
Bxd5 {[%clk 0:00:06.7]} 32... Rxd5 {[%clk 0:00:05.7]} 33. Rd2 {[%clk 0:00:06.9]}
33... g5 {[%clk 0:00:05.3]} 34. hxg5 {[%clk 0:00:06.8]} 34... hxg5 {[%clk
0:00:06.2]} 35. Qe4 {[%clk 0:00:06.7]} 35... Rad8 {[%clk 0:00:06.9]} 36. Rcd3
{[%clk 0:00:06.4]} 36... Qf6 {[%clk 0:00:07.2]} 37. Rf3 {[%clk 0:00:06.1]} 37...
Qd6 {[%clk 0:00:03.9]} 38. Rf5 {[%clk 0:00:06.3]} 38... Rxf5 {[%clk 0:00:03.2]}
39. Qxf5 {[%clk 0:00:06.5]} 39... f6 {[%clk 0:00:03.9]} 40. Qg6+ {[%clk
0:00:06.5]} 40... Kf8 {[%clk 0:00:03.8]} 41. Qh6+ {[%clk 0:00:06.5]} 41... Kf7
{[%clk 0:00:04]} 42. Qh7+ {[%clk 0:00:07]} 42... Kf8 {[%clk 0:00:04.6]} 43. d5
{[%clk 0:00:06.4]} 43... Qf4 {[%clk 0:00:03.3]} 44. Rd1 {[%clk 0:00:06.3]} 44...
Qe5 {[%clk 0:00:02.8]} 45. Qh8+ {[%clk 0:00:05.5]} 45... Ke7 {[%clk 0:00:02.5]}
46. Qg7+ {[%clk 0:00:05.8]} 46... Kd6 {[%clk 0:00:02.8]} 47. Qxb7 {[%clk
0:00:06]} 47... Qc3 {[%clk 0:00:01.7]} 48. Qxb6+ {[%clk 0:00:05.6]} 48... Kd7
{[%clk 0:00:02.4]} 49. Qe6+ {[%clk 0:00:05.2]} 49... Kc7 {[%clk 0:00:03.1]} 50.
d6+ {[%clk 0:00:05.8]} 50... Kb6 {[%clk 0:00:02.3]} 51. d7+ {[%clk 0:00:06.2]}
51... Kb7 {[%clk 0:00:02.9]} 52. Qd5+ {[%clk 0:00:05.5]} 52... Ka7 {[%clk
0:00:02.2]} 53. Qa5+ {[%clk 0:00:05.5]} 53... Kb7 {[%clk 0:00:02.9]} 54. Qxd8
{[%clk 0:00:06.3]} 1-0